fUST/lending_fUST_20251228
["ID","MTS","AMOUNT","RATE_DAILY","PERIOD"]
[399932094,1766885723717,150.0,6.732e-05,2]
[399932095,1766885724160,150.0,7.025e-05,2]
[399932096,1766885724609,150.0,7.318e-05,2]
[399932097,1766885725022,150.0,7.611e-05,2]
[399932098,1766885725462,150.0,7.903e-05,2]
[399932099,1766885725496,315.8837877,0.00030136,120]
[399932100,1766885731831,500.0,0.00013172,2]
[399932101,1766885731860,500.0,0.00013172,2]
[399932102,1766885731891,464.53719809,0.00013172,2]
[399932103,1766885731925,500.0,0.00013172,2]
[399932104,1766885732046,500.0,0.00013172,2]
[399932105,1766885732076,500.0,0.00013172,2]
[399932106,1766885732107,500.0,0.00013172,2]
[399932107,1766885732142,500.0,0.00013172,2]
[399932108,1766885732173,500.0,0.00013172,2]
[399932109,1766885732204,500.0,0.00013172,2]
[399932110,1766885732239,500.0,0.00013172,2]
[399932111,1766885732271,250.00000001,0.00013172,2]
[399932112,1766885739214,351.34281099,0.00013173,2]
[399932113,1766885743098,500.0,0.00013172,2]
[399932114,1766885743129,500.0,0.00013172,2]
[399932115,1766885743160,500.0,0.00013172,2]
[399932116,1766885743194,500.0,0.00013172,2]
[399932117,1766885743230,500.0,0.00013172,2]
[399932118,1766885743262,367.16560183,0.00013172,2]
[399932119,1766885743288,132.83439817,0.00013172,2]
[399932120,1766885743318,500.0,0.00013172,2]
[399932121,1766885743348,500.0,0.00013172,2]
[399932122,1766885743386,500.0,0.00013172,2]
[399932123,1766885743423,500.0,0.00013172,2]
[399932124,1766885743480,500.0,0.00013172,2]
[399932125,1766885743511,257.25961098,0.00013172,2]
[399932126,1766885743544,373.36067846,0.00013172,2]
[399932127,1766885747211,5000.0,0.00013173,2]
[399932128,1766885762920,300.0,0.00013172,2]
[399932129,1766885771259,1436.55531239,0.00013173,2]
[399932130,1766885771282,3563.44468761,0.00013173,2]
[399932131,1766885779821,223.50088208,0.00030134,120]
[399932132,1766885790745,150.0,6.118e-05,2]
[399932133,1766885791124,150.0,6.41e-05,2]
[399932134,1766885791563,150.0,6.701e-05,2]
[399932135,1766885792508,150.0,6.992e-05,2]
[399932136,1766885793228,155.86,7.284e-05,2]
[399932137,1766885793641,187.04,7.575e-05,2]
[399932138,1766885794088,218.21,7.866e-05,2]
[399932139,1766885794518,249.38,8.158e-05,2]
[399932140,1766885794646,5000.0,0.00013173,2]
[399932141,1766885794955,26.07531239,8.449e-05,2]
[399932142,1766885794982,254.47468761,8.449e-05,2]
[399932143,1766885795394,311.73,8.74e-05,2]
[399932144,1766885806654,-3760.54476999,0.00013173,2]
[399932145,1766885806770,-10000.01,0.00013173,2]
[399932146,1766885806863,-10000.01,0.00013173,2]
[399932147,1766885806968,-10000.01,0.00013173,2]
[399932148,1766885807089,-10000.01,0.00013173,2]
[399932149,1766885807211,-10000.01,0.00013173,2]
[399932150,1766885809444,-10000.01,0.00013173,2]
[399932151,1766885809562,-10000.01,0.00013173,2]
[399932152,1766885809652,-10000.01,0.00013173,2]
[399932153,1766885812443,-10000.01,0.00013173,2]
[399932154,1766885812572,-10000.01,0.00013173,2]
[399932155,1766885812701,-10000.01,0.00013173,2]
[399932156,1766885812809,-10000.01,0.00013173,2]
[399932157,1766885812990,-10000.01,0.00013173,2]
[399932158,1766885861654,150.0,6.119e-05,2]
[399932159,1766885862098,150.0,6.411e-05,2]
[399932160,1766885862535,150.0,6.702e-05,2]
[399932161,1766885862974,150.0,6.994e-05,2]
[399932162,1766885863909,150.0,7.285e-05,2]
[399932163,1766885864315,150.0,7.576e-05,2]
[399932164,1766885864803,158.83,7.868e-05,2]
[399932165,1766885865281,181.52,8.159e-05,2]
[399932166,1766885865763,204.21,8.45e-05,2]
[399932167,1766885866253,226.9,8.742e-05,2]
[399932168,1766885874196,205.5347531,0.00030136,120]
[399932169,1766885880309,223.17,8.427e-05,2]
[399932170,1766885890989,290.7384189,0.00012197,2]
[399932171,1766885891757,-5000.0,0.00013041,2]
[399932172,1766885912229,5000.0,0.00013063,2]
[399932173,1766885930513,150.0,6.113e-05,2]
[399932174,1766885930948,150.0,6.404e-05,2]
[399932175,1766885931384,150.0,6.695e-05,2]
[399932176,1766885931818,150.0,6.986e-05,2]
[399932177,1766885932255,184.21,7.278e-05,2]
[399932178,1766885932727,221.05,7.569e-05,2]
[399932179,1766885933165,257.89,7.86e-05,2]
[399932180,1766885933605,294.73,8.151e-05,2]
[399932181,1766885934074,331.58,8.442e-05,2]
[399932182,1766885934523,368.42,8.733e-05,2]
[399932183,1766885935906,2742.13,0.00013063,2]
[399932184,1766885935930,2257.87,0.00013063,2]
[399932185,1766885960065,5000.0,0.00013063,2]
[399932186,1766885982796,204.51459083,0.00030134,120]
[399932187,1766885983521,2742.14,0.00013063,2]
[399932188,1766885983550,2257.86,0.00013063,2]
[399932189,1766886002287,150.0,6.122e-05,2]
[399932190,1766886002735,150.0,6.413e-05,2]
[399932191,1766886003194,150.0,6.705e-05,2]
[399932192,1766886003664,150.0,6.996e-05,2]
[399932193,1766886004112,150.0,7.288e-05,2]
[399932194,1766886004553,150.0,7.579e-05,2]
[399932195,1766886005022,150.28,7.871e-05,2]
[399932196,1766886005462,171.75,8.162e-05,2]
[399932197,1766886005929,193.22,8.454e-05,2]
[399932198,1766886006430,214.69,8.745e-05,2]
[399932199,1766886007454,5000.0,0.00013063,2]
[399932200,1766886030943,1112.21,0.00013063,2]
[399932201,1766886030989,3887.79,0.00013063,2]
[399932202,1766886032837,-518.73260362,0.00013073,2]
[399932203,1766886032872,-605.0,0.00013073,2]
[399932204,1766886040024,3219.89510749,0.00013073,2]
[399932205,1766886047976,-268.36081198,0.00013106,2]
[399932206,1766886054399,5000.0,0.00013107,2]
[399932207,1766886063192,-300.0,0.0001317,2]
[399932208,1766886077940,5000.0,0.0001317,2]
[399932209,1766886078376,-193.62086067,0.00013171,2]
[399932210,1766886078408,-500.0,0.00013171,2]
[399932211,1766886078438,-583.82108848,0.00013171,2]
[399932212,1766886078475,-500.0,0.00013171,2]
[399932213,1766886078506,-500.0,0.00013171,2]
[399932214,1766886078536,-500.0,0.00013171,2]
[399932215,1766886078565,-500.0,0.00013171,2]
[399932216,1766886078595,-500.0,0.00013171,2]
[399932217,1766886078626,-500.0,0.00013171,2]
[399932218,1766886078656,-500.0,0.00013171,2]
[399932219,1766886078779,-500.0,0.00013171,2]
[399932220,1766886078812,-500.0,0.00013171,2]
[399932221,1766886078842,-500.0,0.00013171,2]
[399932222,1766886078872,-500.0,0.00013171,2]
[399932223,1766886078901,-574.48616882,0.00013171,2]
[399932224,1766886079124,-285.05821152,0.00013171,2]
[399932225,1766886079154,-500.0,0.00013171,2]
[399932226,1766886079185,-500.0,0.00013171,2]
[399932227,1766886079215,-500.0,0.00013171,2]
[399932228,1766886079244,-500.0,0.00013171,2]
[399932229,1766886079436,-500.0,0.00013171,2]
[399932230,1766886079468,-500.0,0.00013171,2]
[399932231,1766886079498,-329.6028733,0.00013171,2]
[399932232,1766886079528,-500.0,0.00013171,2]
[399932233,1766886079556,-500.0,0.00013171,2]
[399932234,1766886079586,-500.0,0.00013171,2]
[399932235,1766886079615,-500.0,0.00013171,2]
[399932236,1766886079644,-500.0,0.00013171,2]
[399932237,1766886079672,-500.0,0.00013171,2]
[399932238,1766886079699,-500.0,0.00013171,2]
[399932239,1766886079826,-500.0,0.00013171,2]
[399932240,1766886079857,-500.0,0.00013171,2]
[399932241,1766886079886,-500.0,0.00013171,2]
[399932242,1766886079916,-500.0,0.00013171,2]
[399932243,1766886079947,-500.0,0.00013171,2]
[399932244,1766886079978,-500.0,0.00013171,2]
[399932245,1766886080009,-500.0,0.00013171,2]
[399932246,1766886080039,-500.0,0.00013171,2]
[399932247,1766886080072,-500.0,0.00013171,2]
[399932248,1766886080107,-500.0,0.00013171,2]
[399932249,1766886080257,-500.0,0.00013171,2]
[399932250,1766886082279,231.2634663,0.0003013,120]
[399932251,1766886093623,-1200.0,0.00013171,2]
[399932252,1766886093654,-300.0,0.00013171,2]
[399932253,1766886101256,5000.0,0.00013171,2]
[399932254,1766886102762,162.10147193,0.00012909,2]
[399932255,1766886102830,183.0958885,0.00012909,2]
[399932256,1766886110031,500.0,0.00013171,2]
[399932257,1766886110059,344.24355663,0.00013171,2]
[399932258,1766886110130,-5621.4418293,0.00013172,2]
[399932259,1766886110144,-10000.01,0.00013172,2]
[399932260,1766886110162,-10000.01,0.00013172,2]
[399932261,1766886111845,-10000.01,0.00013172,2]
[399932262,1766886111959,-10000.01,0.00013172,2]
[399932263,1766886112076,-4378.5181707,0.00013172,2]
[399932264,1766886124582,5000.0,0.00013172,2]
[399932265,1766886125792,500.0,0.00013171,2]
[399932266,1766886125822,500.0,0.00013171,2]
[399932267,1766886125861,500.0,0.00013171,2]
[399932268,1766886125891,500.0,0.00013171,2]
[399932269,1766886125919,500.0,0.00013171,2]
[399932270,1766886125949,500.0,0.00013171,2]
[399932271,1766886125982,500.0,0.00013171,2]
[399932272,1766886126011,500.0,0.00013171,2]
[399932273,1766886126042,500.0,0.00013171,2]
[399932274,1766886126070,439.90483688,0.00013171,2]
[399932275,1766886142204,1000.0,0.00030137,120]
[399932276,1766886143184,1000.0,0.00030137,120]
[399932277,1766886143220,60.10516312,0.00013171,2]
[399932278,1766886145412,1000.0,0.00030137,120]
[399932279,1766886147707,1000.0,0.00030137,120]
[399932280,1766886147819,5000.0,0.00013163,2]
[399932281,1766886157992,1055.27,0.00030137,120]
[399932282,1766886171862,5000.0,0.00013163,2]
[399932286,1766886187293,0.01,0.0001307,2]
[399932287,1766886187316,453.88102815,0.0001307,2]
[399932288,1766886195521,5000.0,0.00013163,2]
[399932289,1766886199278,150.0,6.313e-05,2]
[399932290,1766886199720,150.0,6.613e-05,2]
[399932291,1766886219038,4246.12897185,0.00013163,2]
[399932292,1766886264102,150.0,6.272e-05,2]
[399932293,1766886264453,150.0,6.571e-05,2]
[399932294,1766886264892,150.0,6.87e-05,2]
[399932295,1766886265332,150.0,7.168e-05,2]
[399932296,1766886265825,150.0,7.467e-05,2]
[399932297,1766886266251,150.0,7.766e-05,2]
[399932298,1766886266707,163.79,8.065e-05,2]
[399932299,1766886267145,187.19,8.363e-05,2]
[399932300,1766886267616,210.58,8.662e-05,2]
[399932301,1766886268064,233.98,8.961e-05,2]
[399932302,1766886278552,999.0,0.00012172,2]
[399932303,1766886301331,207.28264768,0.00013071,2]
[399932304,1766886345141,-753.87102815,0.00013163,2]
[399932305,1766886345162,-300.0,0.00013168,2]
[399932306,1766886345184,-300.0,0.00013168,2]
[399932307,1766886345207,-13.1811819,0.00013168,2]
[399932308,1766886356315,5000.0,0.00013141,2]
[399932309,1766886364176,497.10501028,0.00013069,2]
[399932310,1766886366023,497.10501027,0.0001307,2]
[399932311,1766886368024,497.10501027,0.00013071,2]
[399932312,1766886370022,497.10501027,0.00013072,2]
[399932313,1766886372009,497.10501027,0.00013073,2]
[399932314,1766886379733,863.64230096,0.00013141,2]
[399932315,1766886379759,4136.35769904,0.00013141,2]
[399932316,1766886396234,150.0,6.223e-05,2]
[399932317,1766886396664,150.0,6.519e-05,2]
[399932318,1766886397197,150.0,6.816e-05,2]
[399932319,1766886403629,5000.0,0.00013141,2]
[399932320,1766886428297,5000.0,0.00013138,2]
[399932321,1766886431128,-241.40875618,0.00013141,2]
[399932322,1766886444094,-965.76050439,0.00013141,2]
[399932323,1766886444116,-300.0,0.00013167,2]
[399932324,1766886444138,-300.0,0.00013168,2]
[399932325,1766886444162,-1200.0,0.00013168,2]
[399932326,1766886444186,-500.0,0.00013168,2]
[399932327,1766886444208,-500.0,0.00013168,2]
[399932328,1766886444230,-322.43632541,0.00013168,2]
[399932329,1766886451807,5000.0,0.00013138,2]
[399932330,1766886461942,150.0,6.139e-05,2]
[399932331,1766886462414,150.0,6.431e-05,2]
[399932332,1766886462857,223.34,6.723e-05,2]
[399932333,1766886463294,297.79,7.016e-05,2]
[399932334,1766886463737,372.23,7.308e-05,2]
[399932335,1766886464181,446.68,7.6e-05,2]
[399932336,1766886465146,521.12,7.893e-05,2]
[399932337,1766886465557,595.57,8.185e-05,2]
[399932338,1766886466022,670.02,8.477e-05,2]
[399932339,1766886466455,744.46,8.77e-05,2]
[399932340,1766886467597,828.8,0.00013071,2]
[399932341,1766886467626,117.76283088,0.00013071,2]
[399932342,1766886472734,9882.24716912,0.00013069,2]
[399932343,1766886472769,10000.01,0.00013069,2]
[399932344,1766886472802,10000.01,0.00013069,2]
[399932345,1766886472835,10000.01,0.00013069,2]
[399932346,1766886483167,-300.0,0.00013068,2]
[399932347,1766886491255,5000.0,0.00013009,2]
[399932348,1766886538507,150.0,6.086e-05,2]
[399932349,1766886538936,150.0,6.376e-05,2]
[399932350,1766886539378,150.0,6.666e-05,2]
[399932351,1766886539780,150.0,6.956e-05,2]
[399932352,1766886540248,164.06,7.246e-05,2]
[399932353,1766886540689,196.88,7.536e-05,2]
[399932354,1766886541125,229.69,7.825e-05,2]
[399932355,1766886541554,262.5,8.115e-05,2]
[399932356,1766886542000,295.31,8.405e-05,2]
[399932357,1766886542539,328.13,8.695e-05,2]
[399932358,1766886550084,-300.0,0.00013067,2]
[399932359,1766886550104,-1200.0,0.00013068,2]
[399932360,1766886550124,-9787.76584317,0.00013068,2]
[399932361,1766886553115,-40212.23415683,0.00013068,2]
[399932362,1766886553136,-500.0,0.00013068,2]
[399932363,1766886553159,-500.0,0.00013068,2]
[399932364,1766886553181,-500.0,0.00013068,2]
[399932365,1766886553202,-161.94386431,0.00013068,2]
[399932366,1766886553224,-229.52352121,0.00013068,2]
[399932367,1766886553245,-500.0,0.00013068,2]
[399932368,1766886553265,-500.0,0.00013068,2]
[399932369,1766886553287,-500.0,0.00013068,2]
[399932370,1766886553308,-500.0,0.00013068,2]
[399932371,1766886553330,-500.0,0.00013068,2]
[399932372,1766886553351,-500.0,0.00013068,2]
[399932373,1766886553373,-500.0,0.00013068,2]
[399932374,1766886553392,-500.0,0.00013068,2]
[399932375,1766886553411,-500.0,0.00013068,2]
[399932376,1766886553433,-500.0,0.00013068,2]
[399932377,1766886553453,-180.59731438,0.00013068,2]
[399932378,1766886553474,-500.0,0.00013068,2]
[399932379,1766886553495,-500.0,0.00013068,2]
[399932380,1766886553552,-500.0,0.00013068,2]
[399932381,1766886553578,-500.0,0.00013068,2]
[399932382,1766886553600,-500.0,0.00013068,2]
[399932383,1766886553620,-500.0,0.00013068,2]
[399932384,1766886553640,-500.0,0.00013068,2]
[399932385,1766886553661,-500.0,0.00013068,2]
[399932386,1766886553682,-500.0,0.00013068,2]
[399932387,1766886553715,-500.0,0.00013068,2]
[399932388,1766886553742,-500.0,0.00013068,2]
[399932389,1766886553760,-450.34390428,0.00013068,2]
[399932390,1766886553779,-500.0,0.00013068,2]
[399932391,1766886553799,-500.0,0.00013068,2]
[399932392,1766886553818,-500.0,0.00013068,2]
[399932393,1766886553837,-500.0,0.00013068,2]
[399932394,1766886553861,-495.25154462,0.00013068,2]
[399932395,1766886553882,-577.12506432,0.00013068,2]
[399932396,1766886553902,-324.4881399,0.00013068,2]
[399932397,1766886553922,-500.0,0.00013068,2]
[399932398,1766886553942,-500.0,0.00013068,2]
[399932399,1766886553961,-500.0,0.00013068,2]
[399932400,1766886553981,-500.0,0.00013068,2]
[399932401,1766886554000,-500.0,0.00013068,2]
[399932402,1766886554021,-500.0,0.00013068,2]
[399932403,1766886554043,-500.0,0.00013068,2]
[399932404,1766886554062,-500.0,0.00013068,2]
[399932405,1766886554082,-500.0,0.00013068,2]
[399932406,1766886554102,-500.0,0.00013068,2]
[399932407,1766886554123,-308.51650966,0.00013068,2]
[399932408,1766886554143,-500.0,0.00013068,2]
[399932409,1766886554163,-500.0,0.00013068,2]
[399932410,1766886554183,-500.0,0.00013068,2]
[399932411,1766886554209,-500.0,0.00013068,2]
[399932412,1766886554229,-500.0,0.00013068,2]
[399932413,1766886554250,-500.0,0.00013068,2]
[399932414,1766886554272,-600.0,0.00013068,2]
[399932415,1766886554292,-273.22467646,0.00013069,2]
[399932416,1766886554317,-44229.86539004,0.00013069,2]
[399932417,1766886554368,-23286.70767077,0.00013069,2]
[399932418,1766886557095,-54713.54238591,0.00013069,2]
[399932419,1766886557117,-5000.0,0.00013138,2]
[399932420,1766886557139,-1762.0316,0.00013173,2]
[399932421,1766886557161,-1763.41,0.00013173,2]
[399932422,1766886557181,-501.20721114,0.00013273,2]
[399932423,1766886557201,-500.0,0.00013273,2]
[399932424,1766886557221,-500.0,0.00013273,2]
[399932425,1766886557242,-396.44283853,0.00013273,2]
[399932426,1766886557261,-500.21999177,0.00013273,2]
[399932427,1766886557281,-500.0,0.00013273,2]
[399932428,1766886557301,-642.96733334,0.00013273,2]
[399932429,1766886557322,-500.37351233,0.00013273,2]
[399932430,1766886557341,-500.47846735,0.00013273,2]
[399932431,1766886557361,-500.60584036,0.00013273,2]
[399932432,1766886557381,-500.66694578,0.00013273,2]
[399932433,1766886557401,-500.0,0.00013273,2]
[399932434,1766886557420,-500.0,0.00013273,2]
[399932435,1766886557440,-500.0,0.00013273,2]
[399932436,1766886557459,-500.0,0.00013273,2]
[399932437,1766886557479,-500.63408652,0.00013273,2]
[399932438,1766886557499,-500.0,0.00013273,2]
[399932439,1766886557518,-502.86490349,0.00013273,2]
[399932440,1766886557544,-387.16405076,0.00013273,2]
[399932441,1766886557564,-501.33395875,0.00013273,2]
[399932442,1766886557586,-261.09444678,0.00013273,2]
[399932443,1766886557605,-500.0,0.00013273,2]
[399932444,1766886557624,-500.0,0.00013273,2]
[399932445,1766886557643,-500.0,0.00013273,2]
[399932446,1766886557662,-500.0,0.00013273,2]
[399932447,1766886557682,-519.68079609,0.00013273,2]
[399932448,1766886557701,-500.0,0.00013273,2]
[399932449,1766886557723,-500.0,0.00013273,2]
[399932450,1766886557743,-500.0,0.00013273,2]
[399932451,1766886557764,-500.0,0.00013273,2]
[399932452,1766886557785,-474.67600331,0.00013273,2]
[399932453,1766886573093,-5000.0,0.0001314,2]
[399932454,1766886573117,-25.32399669,0.00013273,2]
[399932455,1766886573138,-500.0,0.00013273,2]
[399932456,1766886573162,-500.0,0.00013273,2]
[399932457,1766886573184,-620.2295911,0.00013273,2]
[399932458,1766886573208,-338.86264041,0.00013273,2]
[399932459,1766886590398,5000.0,0.00013013,2]
[399932460,1766886609518,150.0,6.098e-05,2]
[399932461,1766886609941,150.0,6.388e-05,2]
[399932462,1766886610380,150.0,6.679e-05,2]
[399932463,1766886610834,150.0,6.969e-05,2]
[399932464,1766886615331,4400.01,0.00013013,2]
[399932465,1766886615355,599.99,0.00013013,2]
[399932466,1766886621731,9400.02,0.00012969,2]
[399932467,1766886621758,10000.01,0.00012969,2]
[399932468,1766886621787,10000.01,0.00012969,2]
[399932469,1766886631372,5000.0,0.00012889,2]
[399932500,1766886632423,-402.51430578,0.00012968,2]
[399932503,1766886632435,-97.48569422,0.00012968,2]
[399932505,1766886632445,-463.36070502,0.00012968,2]
[399932507,1766886632455,-500.0,0.00012968,2]
[399932509,1766886632464,-500.0,0.00012968,2]
[399932511,1766886632474,-630.66646484,0.00012968,2]
[399932513,1766886632483,-500.0,0.00012968,2]
[399932515,1766886632493,-500.0,0.00012968,2]
[399932517,1766886632502,-6309.7950871,0.00012969,2]
[399932519,1766886632517,-360.96,0.00012969,2]
[399932522,1766886632528,-275.28991896,0.00012969,2]
[399932601,1766886638598,-202.72090443,0.00012968,2]
[399932603,1766886638608,-286.34722937,0.00012968,2]
[399932605,1766886638617,-478.72405663,0.00012968,2]
[399932607,1766886638627,-499.47239385,0.00012968,2]
[399932609,1766886638637,-500.0,0.00012968,2]
[399932611,1766886638647,-20872.11731025,0.00012969,2]
[399932811,1766886640667,-1499.98806,0.00012889,2]
[399932813,1766886640679,-1268.27652072,0.00012889,2]
[399933102,1766886646675,-2231.73541928,0.00012889,2]
[399933103,1766886646686,-15063.63126982,0.00012969,2]
[399933104,1766886646698,-433555.65584164,0.00012969,2]
[399933105,1766886646708,-300.0,0.00013272,2]
[399933106,1766886646718,-1200.0,0.00013272,2]
[399933107,1766886646728,-608.0,0.00013272,2]
[399933108,1766886646738,-501.27299908,0.00013273,2]
[399933109,1766886646748,-501.01989761,0.00013273,2]
[399933110,1766886646758,-604.94991892,0.00013273,2]
[399933111,1766886646768,-500.0,0.00013273,2]
[399933112,1766886646779,-500.0,0.00013273,2]
[399933113,1766886646790,-500.0,0.00013273,2]
[399933114,1766886646800,-500.0,0.00013273,2]
[399933115,1766886646810,-600.75117356,0.00013273,2]
[399933116,1766886646820,-500.0,0.00013273,2]
[399933117,1766886646830,-503.67658443,0.00013273,2]
[399933118,1766886646840,-500.0,0.00013273,2]
[399933119,1766886646850,-500.0,0.00013273,2]
[399933120,1766886646860,-168.95206409,0.00013273,2]
[399933122,1766886646869,-500.0,0.00013273,2]
[399933124,1766886646879,-500.0,0.00013273,2]
[399933126,1766886646893,-500.0,0.00013273,2]
[399933128,1766886646904,-500.0,0.00013273,2]
[399933130,1766886646914,-500.0,0.00013273,2]
[399933132,1766886646925,-500.0,0.00013273,2]
[399933134,1766886646935,-500.0,0.00013273,2]
[399933135,1766886646945,-500.0,0.00013273,2]
[399933136,1766886646956,-500.0,0.00013273,2]
[399933137,1766886646966,-300.0,0.00013435,2]
[399933138,1766886646977,-300.0,0.00013435,2]
[399933139,1766886646987,-300.0,0.00013435,2]
[399933140,1766886646997,-300.0,0.00013435,2]
[399933141,1766886647008,-300.0,0.00013435,2]
[399933142,1766886647018,-300.0,0.00013435,2]
[399933143,1766886647028,-300.0,0.00013435,2]
[399933144,1766886647039,-300.0,0.00013435,2]
[399933145,1766886647050,-300.0,0.00013435,2]
[399933146,1766886647061,-300.0,0.00013435,2]
[399933147,1766886647071,-300.0,0.00013435,2]
[399933148,1766886647082,-300.0,0.00013435,2]
[399933149,1766886647097,-300.0,0.00013435,2]
[399933150,1766886647107,-300.0,0.00013435,2]
[399933151,1766886647118,-300.0,0.00013435,2]
[399933152,1766886647128,-600.0,0.00013435,2]
[399933153,1766886647140,-300.0,0.00013673,2]
[399933154,1766886647150,-156.73043463,0.00013698,2]
[399933155,1766886647161,-506.26156463,0.00013698,2]
[399933156,1766886647171,-500.0,0.00013698,2]
[399933157,1766886647181,-500.0,0.00013698,2]
[399933158,1766886647192,-500.0,0.00013698,2]
[399933159,1766886647202,-500.68438985,0.00013698,2]
[399933160,1766886647213,-944.314777,0.00013699,2]
[399933161,1766886647225,-500.0,0.00013699,2]
[399933162,1766886647235,-501.26449218,0.00013699,2]
[399933163,1766886647246,-163.72008059,0.00013699,2]
[399933164,1766886647257,-500.0,0.00013699,2]
[399933165,1766886647267,-500.0,0.00013699,2]
[399933166,1766886647278,-501.29879281,0.00013699,2]
[399933167,1766886647288,-501.2548896,0.00013699,2]
[399933168,1766886647298,-500.0,0.00013699,2]
[399933169,1766886647308,-500.67407574,0.00013821,2]
[399933170,1766886647318,-501.64162607,0.00013821,2]
[399933171,1766886647328,-501.25754819,0.00013821,2]
[399933172,1766886647339,-497.97251228,0.00013821,2]
[399933173,1766886647359,-477.56722822,0.00013821,2]
[399933174,1766886647370,-500.81485971,0.00013821,2]
[399933175,1766886647380,-501.04981137,0.00013821,2]
[399933176,1766886647390,-1004.59218352,0.00013821,2]
[399933177,1766886647399,-1002.89599049,0.00013821,2]
[399933178,1766886647410,-1001.31715539,0.00013821,2]
[399933179,1766886647420,-501.35533226,0.00013821,2]
[399933180,1766886647430,-501.14345087,0.00013821,2]
[399933181,1766886647443,-500.70150329,0.00013821,2]
[399933182,1766886647453,-1001.13133776,0.00013821,2]
[399933183,1766886647463,-1000.0,0.00013821,2]
[399933184,1766886647473,-1002.6062041,0.00013821,2]
[399933185,1766886647483,-1000.67255293,0.00013821,2]
[399933186,1766886647493,-504.20086315,0.00013821,2]
[399933187,1766886647503,-500.44734044,0.00013821,2]
[399933188,1766886647514,-1138.31542847,0.00013821,2]
[399933189,1766886647525,-1000.0,0.00013821,2]
[399933190,1766886647535,-640.51801981,0.00013821,2]
[399933191,1766886647545,-500.58541895,0.00013821,2]
[399933192,1766886647556,-501.55071605,0.00013821,2]
[399933193,1766886647566,-500.0,0.00013821,2]
[399933194,1766886647577,-1000.0,0.00013821,2]
[399933195,1766886647588,-1000.0,0.00014,2]
[399933196,1766886647598,-295.16792105,0.00014221,2]
[399933197,1766886647609,-500.90387971,0.00014247,2]
[399933198,1766886647619,-414.83232396,0.00014247,2]
[399933199,1766886647628,-1000.0,0.00014247,2]
[399933200,1766886647639,-511.44320942,0.00014247,2]
[399933201,1766886647648,-252.0,0.00014331,2]
[399933202,1766886647659,-1014.3677308,0.00014368,2]
[399933203,1766886648012,-485.6322692,0.00014368,2]
[399933204,1766886648022,-1001.12238674,0.00014368,2]
[399933205,1766886648032,-1500.0,0.00014368,2]
[399933206,1766886648042,-420.0,0.00014551,2]
[399933207,1766886648052,-1193.0,0.00014599,2]
[399933208,1766886648061,-720.0,0.00014779,2]
[399933209,1766886648072,-302.96487012,0.00014795,2]
[399933210,1766886648082,-1386.11768709,0.00014916,2]
[399933211,1766886648092,-991.16278685,0.00014916,2]
[399933218,1766886675564,150.0,6.303e-05,2]
[399933219,1766886758984,-600.00765852,0.00012839,2]
[399933220,1766886804556,150.0,6.115e-05,2]
[399933221,1766886804994,150.0,6.406e-05,2]
[399933222,1766886805451,150.0,6.697e-05,2]